[Event "Live Chess"]
[Site "Chess.com"]
[Date "2024.06.02"]
[Round "-"]
[White "NAZRIZ1977"]
[Black "vincents82"]
[Result "1/2-1/2"]
[WhiteElo "2133"]
[BlackElo "2013"]
[TimeControl "300"]
[EndTime "1:24:17 PDT"]
[Termination "Game drawn by repetition"]

1. d4 {[%clk 0:04:53]} 1... d5 {[%clk 0:04:57.5]} 2. Nc3 {[%clk 0:04:51.8]} 2...
Nf6 {[%clk 0:04:56.2]} 3. Bf4 {[%clk 0:04:51.1]} 3... c6 {[%clk 0:04:55.6]} 4.
e3 {[%clk 0:04:50.3]} 4... Bf5 {[%clk 0:04:54.6]} 5. f3 {[%clk 0:04:49.5]} 5...
h6 {[%clk 0:04:52.5]} 6. g4 {[%clk 0:04:44.5]} 6... Bh7 {[%clk 0:04:51.2]} 7. h4
{[%clk 0:04:44.1]} 7... Nbd7 {[%clk 0:04:50.1]} 8. Bd3 {[%clk 0:04:43.3]} 8...
Bxd3 {[%clk 0:04:48.6]} 9. Qxd3 {[%clk 0:04:38.8]} 9... e6 {[%clk 0:04:47.3]}
10. Nge2 {[%clk 0:04:36.1]} 10... Nb6 {[%clk 0:04:45.3]} 11. Kf2 {[%clk
0:04:31.1]} 11... Bd6 {[%clk 0:04:43.4]} 12. g5 {[%clk 0:04:29.4]} 12... Bxf4
{[%clk 0:04:37.8]} 13. Nxf4 {[%clk 0:04:18.9]} 13... hxg5 {[%clk 0:04:36.4]} 14.
hxg5 {[%clk 0:04:17.9]} 14... Rxh1 {[%clk 0:04:32.7]} 15. Rxh1 {[%clk
0:04:17.3]} 15... Ng8 {[%clk 0:04:31.4]} 16. g6 {[%clk 0:04:13.9]} 16... Qf6
{[%clk 0:04:21.9]} 17. gxf7+ {[%clk 0:04:05.6]} 17... Kxf7 {[%clk 0:04:19]} 18.
Nh5 {[%clk 0:03:59.5]} 18... Qg6 {[%clk 0:04:12.6]} 19. Qxg6+ {[%clk 0:03:54.3]}
19... Kxg6 {[%clk 0:04:11.6]} 20. Nf4+ {[%clk 0:03:53.9]} 20... Kf6 {[%clk
0:04:07]} 21. Rg1 {[%clk 0:03:52.8]} 21... g5 {[%clk 0:03:55.7]} 22. Nh3 {[%clk
0:03:51.6]} 22... Ne7 {[%clk 0:03:47.4]} 23. Nxg5 {[%clk 0:03:50.6]} 23... Nc4
{[%clk 0:03:39.2]} 24. b3 {[%clk 0:03:48.1]} 24... Nd6 {[%clk 0:03:38.3]} 25.
Nh7+ {[%clk 0:03:41.8]} 25... Kf7 {[%clk 0:03:37.4]} 26. e4 {[%clk 0:03:41.1]}
26... dxe4 {[%clk 0:03:32.4]} 27. fxe4 {[%clk 0:03:37.6]} 27... Rh8 {[%clk
0:03:30.6]} 28. Ng5+ {[%clk 0:03:33.4]} 28... Ke8 {[%clk 0:03:21.7]} 29. Nxe6
{[%clk 0:03:31]} 29... Rh2+ {[%clk 0:03:20.5]} 30. Rg2 {[%clk 0:03:28.9]} 30...
Rh4 {[%clk 0:03:09.2]} 31. Ke3 {[%clk 0:03:26.6]} 31... b6 {[%clk 0:03:03.5]}
32. a4 {[%clk 0:03:14.8]} 32... Kd7 {[%clk 0:03:02.4]} 33. Nf8+ {[%clk
0:03:11.5]} 33... Ke8 {[%clk 0:03:01.4]} 34. Ng6 {[%clk 0:03:06.6]} 34... Rh3+
{[%clk 0:02:45]} 35. Kd2 {[%clk 0:03:04.5]} 35... Nec8 {[%clk 0:02:38.4]} 36.
Rf2 {[%clk 0:02:56.4]} 36... Kd7 {[%clk 0:02:17]} 37. Ne5+ {[%clk 0:02:47.7]}
37... Ke6 {[%clk 0:02:16.1]} 38. Nxc6 {[%clk 0:02:43.1]} 38... Rxc3 {[%clk
0:02:14.5]} 39. d5+ {[%clk 0:02:38.2]} 39... Kd7 {[%clk 0:02:02.2]} 40. Re2
{[%clk 0:02:23.6]} 40... Rh3 {[%clk 0:01:55.9]} 41. e5 {[%clk 0:02:21.7]} 41...
Nf5 {[%clk 0:01:52.7]} 42. e6+ {[%clk 0:02:18.4]} 42... Kd6 {[%clk 0:01:49.4]}
43. c4 {[%clk 0:02:17.1]} 43... a5 {[%clk 0:01:45.7]} 44. Kc2 {[%clk 0:02:11]}
44... Nce7 {[%clk 0:01:42.5]} 45. Nxe7 {[%clk 0:01:55.3]} 45... Nd4+ {[%clk
0:01:41.5]} 46. Kd2 {[%clk 0:01:54.7]} 46... Nxe2 {[%clk 0:01:40.5]} 47. Nf5+
{[%clk 0:01:53.1]} 47... Ke5 {[%clk 0:01:34.5]} 48. e7 {[%clk 0:01:52.1]} 48...
Rh8 {[%clk 0:01:25.7]} 49. Ng7 {[%clk 0:01:20.5]} 49... Nd4 {[%clk 0:01:16.5]}
50. Kc3 {[%clk 0:01:09.3]} 50... Rh3+ {[%clk 0:00:50]} 51. Kb2 {[%clk
0:01:08.1]} 51... Rh2+ {[%clk 0:00:49.1]} 52. Kb1 {[%clk 0:01:01.4]} 52... Rh8
{[%clk 0:00:42.7]} 53. e8=Q+ {[%clk 0:00:57.9]} 53... Rxe8 {[%clk 0:00:41.4]}
54. Nxe8 {[%clk 0:00:57.8]} 54... Nxb3 {[%clk 0:00:40.9]} 55. Kc2 {[%clk
0:00:46.2]} 55... Nc5 {[%clk 0:00:39.4]} 56. Nc7 {[%clk 0:00:34.6]} 56... Nxa4
{[%clk 0:00:37.2]} 57. Na8 {[%clk 0:00:34.2]} 57... Kd6 {[%clk 0:00:34.2]} 58.
Kb3 {[%clk 0:00:33.1]} 58... Nc5+ {[%clk 0:00:33]} 59. Kc3 {[%clk 0:00:32.7]}
59... Nd7 {[%clk 0:00:31.3]} 60. Kd4 {[%clk 0:00:29.3]} 60... a4 {[%clk
0:00:30.5]} 61. Kc3 {[%clk 0:00:28]} 61... Kc5 {[%clk 0:00:27]} 62. Nc7 {[%clk
0:00:27]} 62... a3 {[%clk 0:00:24.3]} 63. Na6+ {[%clk 0:00:21.4]} 63... Kd6
{[%clk 0:00:22.5]} 64. Kb3 {[%clk 0:00:20.9]} 64... Ne5 {[%clk 0:00:19.7]} 65.
Nb4 {[%clk 0:00:18.5]} 65... Kc5 {[%clk 0:00:16.5]} 66. Na6+ {[%clk 0:00:14.6]}
66... Kd6 {[%clk 0:00:15.2]} 67. Nb4 {[%clk 0:00:13.6]} 67... Kc5 {[%clk
0:00:14.6]} 68. d6 {[%clk 0:00:11.9]} 68... Kxd6 {[%clk 0:00:13.4]} 69. Kxa3
{[%clk 0:00:10.3]} 69... Nxc4+ {[%clk 0:00:12.8]} 70. Kb3 {[%clk 0:00:10]} 70...
Kc5 {[%clk 0:00:12.6]} 71. Nd3+ {[%clk 0:00:08.9]} 71... Kc6 {[%clk 0:00:11.9]}
72. Kxc4 {[%clk 0:00:07.4]} 72... b5+ {[%clk 0:00:11]} 73. Kb4 {[%clk
0:00:06.4]} 73... Kb6 {[%clk 0:00:10.3]} 74. Nc5 {[%clk 0:00:05.4]} 74... Kc6
{[%clk 0:00:09.6]} 75. Nd3 {[%clk 0:00:05.3]} 75... Kb6 {[%clk 0:00:09.2]} 76.
Nc5 {[%clk 0:00:05.1]} 76... Kc6 {[%clk 0:00:08.8]} 77. Nd3 {[%clk 0:00:05]}
1/2-1/2

[Event "Live Chess"]
[Site "Chess.com"]
[Date "2024.06.02"]
[Round "-"]
[White "ProfessorChess101"]
[Black "Ferrarifan27"]
[Result "1/2-1/2"]
[WhiteElo "2724"]
[BlackElo "2135"]
[TimeControl "300"]
[EndTime "1:24:30 PDT"]
[Termination "Game drawn by repetition"]

1. d4 {[%clk 0:04:57.3]} 1... Nf6 {[%clk 0:04:58.4]} 2. Nf3 {[%clk 0:04:54.6]}
2... d5 {[%clk 0:04:55.4]} 3. c4 {[%clk 0:04:53.5]} 3... e6 {[%clk 0:04:54.2]}
4. Nc3 {[%clk 0:04:52.8]} 4... Bb4 {[%clk 0:04:51.9]} 5. Bd2 {[%clk 0:04:51.5]}
5... O-O {[%clk 0:04:50.7]} 6. e3 {[%clk 0:04:50.7]} 6... c6 {[%clk 0:04:49.1]}
7. Qc2 {[%clk 0:04:47]} 7... Nbd7 {[%clk 0:04:46.8]} 8. Bd3 {[%clk 0:04:44]}
8... b6 {[%clk 0:04:45.8]} 9. Rd1 {[%clk 0:04:36.9]} 9... Bb7 {[%clk 0:04:44.7]}
10. a3 {[%clk 0:04:32.4]} 10... Bxc3 {[%clk 0:04:43.4]} 11. Bxc3 {[%clk
0:04:32.3]} 11... Qe7 {[%clk 0:04:40.6]} 12. O-O {[%clk 0:04:27.3]} 12... h6
{[%clk 0:04:38.7]} 13. Ne5 {[%clk 0:04:20.4]} 13... Nxe5 {[%clk 0:04:36.4]} 14.
dxe5 {[%clk 0:04:20.3]} 14... Nd7 {[%clk 0:04:35.2]} 15. e4 {[%clk 0:04:14.7]}
15... dxc4 {[%clk 0:04:31.5]} 16. Bxc4 {[%clk 0:04:12.9]} 16... Rfd8 {[%clk
0:04:29.5]} 17. Rd6 {[%clk 0:04:07.4]} 17... c5 {[%clk 0:04:12]} 18. Rfd1 {[%clk
0:04:03.8]} 18... Nf8 {[%clk 0:04:08.6]} 19. Qd3 {[%clk 0:03:49.9]} 19... Rxd6
{[%clk 0:03:47.2]} 20. exd6 {[%clk 0:03:48.1]} 20... Qg5 {[%clk 0:03:44.3]} 21.
b4 {[%clk 0:03:12.7]} 21... Nd7 {[%clk 0:03:37.5]} 22. Ba6 {[%clk 0:03:00.6]}
22... Bxa6 {[%clk 0:03:18.3]} 23. Qxa6 {[%clk 0:03:00.5]} 23... Qg4 {[%clk
0:02:42.2]} 24. f3 {[%clk 0:02:43.3]} 24... Qf4 {[%clk 0:02:40.6]} 25. Qb7
{[%clk 0:02:35.5]} 25... Qe3+ {[%clk 0:02:35.3]} 26. Kh1 {[%clk 0:02:28.9]}
26... Rf8 {[%clk 0:02:29]} 27. Bxg7 {[%clk 0:02:17.3]} 27... Kxg7 {[%clk
0:02:25.7]} 28. Qxd7 {[%clk 0:02:16.7]} 28... cxb4 {[%clk 0:02:12.6]} 29. axb4
{[%clk 0:02:09.2]} 29... Qb3 {[%clk 0:02:11.5]} 30. Rc1 {[%clk 0:01:33.2]} 30...
Qxb4 {[%clk 0:02:04.6]} 31. Qc7 {[%clk 0:01:28.5]} 31... a5 {[%clk 0:01:53.8]}
32. h4 {[%clk 0:01:17.6]} 32... a4 {[%clk 0:01:48.9]} 33. d7 {[%clk 0:01:16.6]}
33... Qe7 {[%clk 0:01:47.5]} 34. Qe5+ {[%clk 0:00:55.3]} 34... Kh7 {[%clk
0:01:31.6]} 35. Rc8 {[%clk 0:00:48.8]} 35... Qxh4+ {[%clk 0:01:23.2]} 36. Kg1
{[%clk 0:00:44.7]} 36... Qe1+ {[%clk 0:01:21.9]} 37. Kh2 {[%clk 0:00:44.1]}
37... Qh4+ {[%clk 0:01:20.6]} 38. Kg1 {[%clk 0:00:37.5]} 38... Qe1+ {[%clk
0:01:19.4]} 39. Kh2 {[%clk 0:00:36.6]} 39... Qh4+ {[%clk 0:01:18.4]} 40. Kg1
{[%clk 0:00:35.7]} 1/2-1/2

[Event "Live Chess"]
[Site "Chess.com"]
[Date "2024.06.02"]
[Round "-"]
[White "RockTroll"]
[Black "LL220284LL"]
[Result "0-1"]
[WhiteElo "2185"]
[BlackElo "2498"]
[TimeControl "300"]
[EndTime "1:24:36 PDT"]
[Termination "LL220284LL won by resignation"]

1. e4 {[%clk 0:04:56.5]} 1... g6 {[%clk 0:04:59.2]} 2. d4 {[%clk 0:04:54.9]}
2... Bg7 {[%clk 0:04:58.5]} 3. c4 {[%clk 0:04:54.5]} 3... d6 {[%clk 0:04:57.8]}
4. Nc3 {[%clk 0:04:53.2]} 4... c5 {[%clk 0:04:55.8]} 5. Nge2 {[%clk 0:04:50.8]}
5... cxd4 {[%clk 0:04:53.6]} 6. Nxd4 {[%clk 0:04:49.8]} 6... Nc6 {[%clk
0:04:52.3]} 7. Be3 {[%clk 0:04:48]} 7... Bd7 {[%clk 0:04:49.7]} 8. Be2 {[%clk
0:04:46.8]} 8... Nf6 {[%clk 0:04:48.4]} 9. O-O {[%clk 0:04:45.5]} 9... O-O
{[%clk 0:04:47]} 10. Qd2 {[%clk 0:04:44.9]} 10... Ng4 {[%clk 0:04:43]} 11. Bxg4
{[%clk 0:04:43.6]} 11... Bxg4 {[%clk 0:04:42.9]} 12. f3 {[%clk 0:04:42.8]} 12...
Bd7 {[%clk 0:04:41.4]} 13. Rfd1 {[%clk 0:04:41.2]} 13... Rc8 {[%clk 0:04:38.7]}
14. Rac1 {[%clk 0:04:37.1]} 14... Nxd4 {[%clk 0:04:34.3]} 15. b3 {[%clk
0:04:37]} 15... Nc6 {[%clk 0:04:30.8]} 0-1

[Event "Live Chess"]
[Site "Chess.com"]
[Date "2024.06.02"]
[Round "-"]
[White "Bradfield133"]
[Black "chessgoatpawel"]
[Result "1-0"]
[WhiteElo "1884"]
[BlackElo "2008"]
[TimeControl "300"]
[EndTime "1:24:41 PDT"]
[Termination "Bradfield133 won by resignation"]

1. c4 {[%clk 0:04:57.9]} 1... Nf6 {[%clk 0:04:57.5]} 2. g3 {[%clk 0:04:56.6]}
2... g6 {[%clk 0:04:56.3]} 3. Bg2 {[%clk 0:04:55.8]} 3... Bg7 {[%clk 0:04:55.9]}
4. Nc3 {[%clk 0:04:54.8]} 4... O-O {[%clk 0:04:55.5]} 5. e4 {[%clk 0:04:53.4]}
5... d6 {[%clk 0:04:54.9]} 6. Nge2 {[%clk 0:04:52.4]} 6... Nc6 {[%clk
0:04:53.9]} 7. O-O {[%clk 0:04:51.3]} 7... e5 {[%clk 0:04:52.8]} 8. d3 {[%clk
0:04:48.7]} 8... Re8 {[%clk 0:04:48.4]} 9. h3 {[%clk 0:04:46.7]} 9... h5 {[%clk
0:04:42.1]} 10. f4 {[%clk 0:04:43]} 10... exf4 {[%clk 0:04:39.5]} 11. Nxf4
{[%clk 0:04:38.4]} 11... Nd7 {[%clk 0:04:31.6]} 12. Nfd5 {[%clk 0:04:17.5]}
12... Nf6 {[%clk 0:04:27]} 13. Bg5 {[%clk 0:04:12.6]} 13... Re6 {[%clk
0:04:17.5]} 14. Nb5 {[%clk 0:03:58]} 14... Qf8 {[%clk 0:03:47.1]} 15. Nbxc7
{[%clk 0:03:53.9]} 15... Nxd5 {[%clk 0:03:36.8]} 16. cxd5 {[%clk 0:03:50.6]} 1-0

[Event "Live Chess"]
[Site "Chess.com"]
[Date "2024.06.02"]
[Round "-"]
[White "jellhhggffhjjjjjj"]
[Black "AlanBstard10"]
[Result "0-1"]
[WhiteElo "403"]
[BlackElo "1203"]
[TimeControl "300"]
[EndTime "1:24:53 PDT"]
[Termination "AlanBstard10 won by checkmate"]

1. d4 {[%clk 0:04:55.1]} 1... Nf6 {[%clk 0:04:56.8]} 2. Nf3 {[%clk 0:04:50]}
2... d5 {[%clk 0:04:55.6]} 3. Bf4 {[%clk 0:04:47.7]} 3... Bg4 {[%clk 0:04:54.6]}
4. e3 {[%clk 0:04:45.9]} 4... Bxf3 {[%clk 0:04:54.1]} 5. Qxf3 {[%clk 0:04:43.7]}
5... e6 {[%clk 0:04:53.1]} 6. c4 {[%clk 0:04:42.8]} 6... Bd6 {[%clk 0:04:52.3]}
7. Nc3 {[%clk 0:04:42.1]} 7... dxc4 {[%clk 0:04:49.5]} 8. Bxc4 {[%clk
0:04:36.3]} 8... Bxf4 {[%clk 0:04:48.1]} 9. Qxf4 {[%clk 0:04:34.2]} 9... O-O
{[%clk 0:04:47.1]} 10. O-O-O {[%clk 0:04:29]} 10... Qd6 {[%clk 0:04:45.6]} 11.
Qxd6 {[%clk 0:04:27.1]} 11... cxd6 {[%clk 0:04:44.7]} 12. h4 {[%clk 0:04:25.8]}
12... d5 {[%clk 0:04:44]} 13. Bd3 {[%clk 0:04:22.6]} 13... Nc6 {[%clk
0:04:42.6]} 14. h5 {[%clk 0:04:16.4]} 14... Rac8 {[%clk 0:04:41.3]} 15. h6
{[%clk 0:04:13.7]} 15... g6 {[%clk 0:04:39.3]} 16. Kb1 {[%clk 0:04:03.7]} 16...
Nb4 {[%clk 0:04:36.8]} 17. a3 {[%clk 0:03:58.6]} 17... Nxd3 {[%clk 0:04:35.7]}
18. Rxd3 {[%clk 0:03:56.7]} 18... a6 {[%clk 0:04:32.6]} 19. Rdd1 {[%clk
0:03:54.5]} 19... b5 {[%clk 0:04:22.7]} 20. Ne2 {[%clk 0:03:52.5]} 20... Rc7
{[%clk 0:04:19.6]} 21. Ng3 {[%clk 0:03:49.3]} 21... Rfc8 {[%clk 0:04:17.9]} 22.
Rd2 {[%clk 0:03:41.6]} 22... Nd7 {[%clk 0:04:09.5]} 23. f4 {[%clk 0:03:35.4]}
23... Nb6 {[%clk 0:04:06.7]} 24. b3 {[%clk 0:03:29.3]} 24... a5 {[%clk
0:03:59.9]} 25. f5 {[%clk 0:03:24.7]} 25... gxf5 {[%clk 0:03:55.9]} 26. Nxf5
{[%clk 0:03:21.9]} 26... exf5 {[%clk 0:03:54.5]} 27. Rh3 {[%clk 0:03:17.9]}
27... a4 {[%clk 0:03:51.6]} 28. Rg3+ {[%clk 0:03:16.6]} 28... Kf8 {[%clk
0:03:49.4]} 29. b4 {[%clk 0:03:14]} 29... Nc4 {[%clk 0:03:47.5]} 30. Rc2 {[%clk
0:03:08.1]} 30... Nxa3+ {[%clk 0:03:45.5]} 31. Ka2 {[%clk 0:03:03.9]} 31... Nxc2
{[%clk 0:03:42.2]} 32. Rg7 {[%clk 0:03:00.6]} 32... Nxe3 {[%clk 0:03:40.7]} 33.
Rxh7 {[%clk 0:02:47.5]} 33... Rc2+ {[%clk 0:03:38.4]} 34. Ka3 {[%clk 0:02:43.2]}
34... Kg8 {[%clk 0:03:36.3]} 35. Rg7+ {[%clk 0:02:37.6]} 35... Kh8 {[%clk
0:03:34.9]} 36. Rxf7 {[%clk 0:02:28.3]} 36... R8c3# {[%clk 0:03:34]} 0-1

[Event "Live Chess"]
[Site "Chess.com"]
[Date "2024.06.02"]
[Round "-"]
[White "r0ad_t0-gm"]
[Black "WelshTiger"]
[Result "0-1"]
[WhiteElo "2261"]
[BlackElo "2441"]
[TimeControl "300"]
[EndTime "1:24:57 PDT"]
[Termination "WelshTiger won by checkmate"]

1. Nf3 {[%clk 0:04:59.1]} 1... d5 {[%clk 0:04:55.9]} 2. g3 {[%clk 0:04:57.8]}
2... Nf6 {[%clk 0:04:55]} 3. Bg2 {[%clk 0:04:57.2]} 3... g6 {[%clk 0:04:54.6]}
4. c4 {[%clk 0:04:54.8]} 4... c6 {[%clk 0:04:53.8]} 5. b3 {[%clk 0:04:52.6]}
5... Bg7 {[%clk 0:04:52.8]} 6. Bb2 {[%clk 0:04:52.3]} 6... O-O {[%clk 0:04:52]}
7. O-O {[%clk 0:04:51.5]} 7... Bg4 {[%clk 0:04:47]} 8. d3 {[%clk 0:04:49.1]}
8... Bxf3 {[%clk 0:04:43.9]} 9. Bxf3 {[%clk 0:04:48.1]} 9... Re8 {[%clk
0:04:41.5]} 10. Bg2 {[%clk 0:04:35.7]} 10... e5 {[%clk 0:04:40.5]} 11. Nd2
{[%clk 0:04:30.4]} 11... Nbd7 {[%clk 0:04:34.8]} 12. cxd5 {[%clk 0:04:27.9]}
12... Nxd5 {[%clk 0:04:32.9]} 13. Rc1 {[%clk 0:04:21.1]} 13... Nf8 {[%clk
0:04:27.8]} 14. a3 {[%clk 0:04:12.6]} 14... Ne6 {[%clk 0:04:26.9]} 15. b4 {[%clk
0:04:11]} 15... Nd4 {[%clk 0:04:23.4]} 16. e3 {[%clk 0:04:06.3]} 16... Ne6
{[%clk 0:04:22.1]} 17. Nc4 {[%clk 0:04:05.6]} 17... f6 {[%clk 0:04:21.1]} 18.
Qc2 {[%clk 0:03:57.5]} 18... Qd7 {[%clk 0:04:20.1]} 19. Rfd1 {[%clk 0:03:55.8]}
19... Rad8 {[%clk 0:04:18.8]} 20. Na5 {[%clk 0:03:44.8]} 20... Bf8 {[%clk
0:04:03.8]} 21. Nb3 {[%clk 0:03:36.8]} 21... Ne7 {[%clk 0:03:40.8]} 22. d4
{[%clk 0:03:28.2]} 22... exd4 {[%clk 0:03:38.7]} 23. Nxd4 {[%clk 0:03:27.2]}
23... Nxd4 {[%clk 0:03:34.3]} 24. Bxd4 {[%clk 0:03:24.2]} 24... Qe6 {[%clk
0:03:24.4]} 25. Qb2 {[%clk 0:02:45.9]} 25... Bg7 {[%clk 0:03:16]} 26. Bxa7
{[%clk 0:02:39.8]} 26... Nd5 {[%clk 0:03:13.6]} 27. Bd4 {[%clk 0:02:29.7]} 27...
Rd7 {[%clk 0:03:09.5]} 28. a4 {[%clk 0:02:24.3]} 28... Red8 {[%clk 0:03:06.2]}
29. b5 {[%clk 0:02:22.1]} 29... Ne7 {[%clk 0:03:00.8]} 30. Qc2 {[%clk
0:02:14.5]} 30... Nd5 {[%clk 0:02:55.5]} 31. bxc6 {[%clk 0:02:05.8]} 31... bxc6
{[%clk 0:02:54.6]} 32. Qxc6 {[%clk 0:02:02.5]} 32... Qxc6 {[%clk 0:02:52.3]} 33.
Rxc6 {[%clk 0:02:02.4]} 33... Nb4 {[%clk 0:02:43.3]} 34. Rb6 {[%clk 0:01:55.7]}
34... Nc2 {[%clk 0:02:42.4]} 35. a5 {[%clk 0:01:43.7]} 35... f5 {[%clk
0:02:38.9]} 36. a6 {[%clk 0:01:36.6]} 36... Nxd4 {[%clk 0:02:37.9]} 37. exd4
{[%clk 0:01:36.1]} 37... Bxd4 {[%clk 0:02:37]} 38. Rbb1 {[%clk 0:01:19.3]} 38...
Kg7 {[%clk 0:02:21.4]} 39. h4 {[%clk 0:01:07.5]} 39... Kf6 {[%clk 0:02:20.2]}
40. Rxd4 {[%clk 0:01:02.8]} 40... Rxd4 {[%clk 0:02:18.5]} 41. a7 {[%clk
0:01:02.2]} 41... Ra4 {[%clk 0:02:15.4]} 42. Rb6+ {[%clk 0:00:51.9]} 42... Ke5
{[%clk 0:02:13.4]} 43. a8=Q {[%clk 0:00:39]} 43... Rdxa8 {[%clk 0:02:10.4]} 44.
Bxa8 {[%clk 0:00:38.9]} 44... Rxa8 {[%clk 0:02:09.5]} 45. Kg2 {[%clk 0:00:38.6]}
45... Rd8 {[%clk 0:02:04.8]} 46. Rb7 {[%clk 0:00:37.7]} 46... h5 {[%clk
0:02:01.2]} 47. Rg7 {[%clk 0:00:36.7]} 47... Rd6 {[%clk 0:02:00.1]} 48. Ra7
{[%clk 0:00:35.7]} 48... Kf6 {[%clk 0:01:58.6]} 49. Ra8 {[%clk 0:00:34.4]} 49...
Rb6 {[%clk 0:01:57.2]} 50. Rf8+ {[%clk 0:00:33.6]} 50... Kg7 {[%clk 0:01:56.2]}
51. Rc8 {[%clk 0:00:33.5]} 51... Rb4 {[%clk 0:01:54.5]} 52. Rc7+ {[%clk
0:00:32.9]} 52... Kh6 {[%clk 0:01:53.5]} 53. Rc6 {[%clk 0:00:32.8]} 53... f4
{[%clk 0:01:52.8]} 54. Rc7 {[%clk 0:00:31.6]} 54... fxg3 {[%clk 0:01:50.1]} 55.
fxg3 {[%clk 0:00:30.9]} 55... Rb2+ {[%clk 0:01:49.3]} 56. Kh3 {[%clk 0:00:30.5]}
56... Rb3 {[%clk 0:01:49]} 57. Rc8 {[%clk 0:00:30]} 57... Rb7 {[%clk 0:01:47.1]}
58. Rh8+ {[%clk 0:00:29.1]} 58... Kg7 {[%clk 0:01:45.8]} 59. Ra8 {[%clk
0:00:29]} 59... Rc7 {[%clk 0:01:44.5]} 60. Rb8 {[%clk 0:00:28.4]} 60... Ra7
{[%clk 0:01:43.4]} 61. Rc8 {[%clk 0:00:27.8]} 61... Re7 {[%clk 0:01:42.4]} 62.
Rb8 {[%clk 0:00:27.3]} 62... Kf6 {[%clk 0:01:41.9]} 63. Rc8 {[%clk 0:00:26.9]}
63... Kf5 {[%clk 0:01:39.9]} 64. Rf8+ {[%clk 0:00:26.1]} 64... Ke4 {[%clk
0:01:38.8]} 65. Rg8 {[%clk 0:00:26]} 65... Re6 {[%clk 0:01:38.2]} 66. Rf8 {[%clk
0:00:25.4]} 66... Ke3 {[%clk 0:01:37.2]} 67. Rf4 {[%clk 0:00:24.7]} 67... Ra6
{[%clk 0:01:33.7]} 68. Rf8 {[%clk 0:00:23.9]} 68... Ra1 {[%clk 0:01:32.6]} 69.
Re8+ {[%clk 0:00:23.5]} 69... Kf3 {[%clk 0:01:31.8]} 70. Rf8+ {[%clk 0:00:23.4]}
70... Ke4 {[%clk 0:01:31.2]} 71. Rg8 {[%clk 0:00:23.2]} 71... Kf5 {[%clk
0:01:28.8]} 72. Rf8+ {[%clk 0:00:22.4]} 72... Ke6 {[%clk 0:01:27.9]} 73. Rf4
{[%clk 0:00:22.3]} 73... Rh1+ {[%clk 0:01:25.8]} 74. Kg2 {[%clk 0:00:22.2]}
74... Rb1 {[%clk 0:01:25.2]} 75. Rf2 {[%clk 0:00:21.2]} 75... Rb3 {[%clk
0:01:24.2]} 76. Kh3 {[%clk 0:00:20.8]} 76... Ra3 {[%clk 0:01:22.4]} 77. Rf4
{[%clk 0:00:20.4]} 77... Ra8 {[%clk 0:01:19.6]} 78. Rf2 {[%clk 0:00:20]} 78...
Rb8 {[%clk 0:01:18.6]} 79. Kg2 {[%clk 0:00:19.9]} 79... Rb7 {[%clk 0:01:16.9]}
80. Rf3 {[%clk 0:00:19.8]} 80... Rb6 {[%clk 0:01:16.2]} 81. Rf2 {[%clk
0:00:19.7]} 81... Rb3 {[%clk 0:01:15.3]} 82. Rf3 {[%clk 0:00:19.6]} 82... Rb2+
{[%clk 0:01:14.8]} 83. Rf2 {[%clk 0:00:19.5]} 83... Rb1 {[%clk 0:01:14.5]} 84.
Rf3 {[%clk 0:00:19.4]} 84... Ke5 {[%clk 0:01:13.4]} 85. Rf2 {[%clk 0:00:19.3]}
85... Ke4 {[%clk 0:01:13]} 86. Re2+ {[%clk 0:00:18.8]} 86... Kf5 {[%clk
0:01:12]} 87. Rf2+ {[%clk 0:00:18.7]} 87... Ke6 {[%clk 0:01:10.5]} 88. Re2+
{[%clk 0:00:18.3]} 88... Kf6 {[%clk 0:01:09.4]} 89. Rf2+ {[%clk 0:00:18.2]}
89... Kg7 {[%clk 0:01:08.9]} 90. Re2 {[%clk 0:00:17.8]} 90... Rb3 {[%clk
0:01:07.9]} 91. Rf2 {[%clk 0:00:17.7]} 91... g5 {[%clk 0:01:06.5]} 92. Rf3
{[%clk 0:00:17.3]} 92... Rb2+ {[%clk 0:01:04.5]} 93. Rf2 {[%clk 0:00:16.8]}
93... Rb5 {[%clk 0:00:59.6]} 94. hxg5 {[%clk 0:00:15.7]} 94... Rxg5 {[%clk
0:00:59.5]} 95. Kh3 {[%clk 0:00:15.4]} 95... Kg6 {[%clk 0:00:58.7]} 96. Rf4
{[%clk 0:00:15.3]} 96... Rb5 {[%clk 0:00:57.7]} 97. Rh4 {[%clk 0:00:15.2]} 97...
Rb1 {[%clk 0:00:55.6]} 98. Rf4 {[%clk 0:00:15.1]} 98... Rh1+ {[%clk 0:00:54.7]}
99. Kg2 {[%clk 0:00:14.8]} 99... Ra1 {[%clk 0:00:53.6]} 100. Rh4 {[%clk
0:00:14.7]} 100... Kg5 {[%clk 0:00:52.5]} 101. Rf4 {[%clk 0:00:14.6]} 101... Ra3
{[%clk 0:00:50.9]} 102. Kh3 {[%clk 0:00:14]} 102... Ra2 {[%clk 0:00:47.9]} 103.
Rh4 {[%clk 0:00:13.9]} 103... Rb2 {[%clk 0:00:46.4]} 104. Rf4 {[%clk 0:00:12.8]}
104... Rd2 {[%clk 0:00:45.2]} 105. Rh4 {[%clk 0:00:12.7]} 105... Rf2 {[%clk
0:00:44.6]} 106. Rf4 {[%clk 0:00:12.6]} 106... Re2 {[%clk 0:00:41.6]} 107. Rh4
{[%clk 0:00:12.5]} 107... Re1 {[%clk 0:00:40.6]} 108. Rf4 {[%clk 0:00:12.4]}
108... Rh1+ {[%clk 0:00:39.7]} 109. Kg2 {[%clk 0:00:11.7]} 109... Ra1 {[%clk
0:00:39.6]} 110. Rh4 {[%clk 0:00:11.4]} 110... Ra5 {[%clk 0:00:37.9]} 111. Kh3
{[%clk 0:00:11.3]} 111... Rb5 {[%clk 0:00:36.1]} 112. Rf4 {[%clk 0:00:11.2]}
112... Kh6 {[%clk 0:00:32.5]} 113. Rh4 {[%clk 0:00:11.1]} 113... Rg5 {[%clk
0:00:30.8]} 114. Rf4 {[%clk 0:00:11]} 114... Rg6 {[%clk 0:00:29.9]} 115. Rh4
{[%clk 0:00:10.9]} 115... Rg8 {[%clk 0:00:29]} 116. Rf4 {[%clk 0:00:10.8]}
116... Rg7 {[%clk 0:00:28.7]} 117. Rh4 {[%clk 0:00:10.7]} 117... Rg6 {[%clk
0:00:28.4]} 118. Rf4 {[%clk 0:00:10.6]} 118... Rb6 {[%clk 0:00:27.9]} 119. Rh4
{[%clk 0:00:10.5]} 119... Ra6 {[%clk 0:00:27.4]} 120. Rf4 {[%clk 0:00:10.4]}
120... Ra2 {[%clk 0:00:26.7]} 121. Rh4 {[%clk 0:00:10.3]} 121... Kg6 {[%clk
0:00:25.7]} 122. Rg4+ {[%clk 0:00:09.6]} 122... hxg4+ {[%clk 0:00:24.7]} 123.
Kxg4 {[%clk 0:00:09.5]} 123... Ra4+ {[%clk 0:00:24]} 124. Kf3 {[%clk 0:00:09.4]}
124... Kg5 {[%clk 0:00:23.5]} 125. Kg2 {[%clk 0:00:08.6]} 125... Ra3 {[%clk
0:00:23]} 126. Kh3 {[%clk 0:00:08.5]} 126... Rb3 {[%clk 0:00:22.2]} 127. Kg2
{[%clk 0:00:08.4]} 127... Kg4 {[%clk 0:00:21.7]} 128. Kf2 {[%clk 0:00:07.7]}
128... Rxg3 {[%clk 0:00:21.5]} 129. Ke2 {[%clk 0:00:07.6]} 129... Rf3 {[%clk
0:00:21]} 130. Kd2 {[%clk 0:00:06.8]} 130... Kf4 {[%clk 0:00:20.9]} 131. Ke2
{[%clk 0:00:06.7]} 131... Ke4 {[%clk 0:00:20.4]} 132. Kd2 {[%clk 0:00:06.6]}
132... Re3 {[%clk 0:00:19.8]} 133. Kd1 {[%clk 0:00:05.9]} 133... Kd3 {[%clk
0:00:18.9]} 134. Kc1 {[%clk 0:00:05.4]} 134... Kc3 {[%clk 0:00:18]} 135. Kd1
{[%clk 0:00:04.8]} 135... Re4 {[%clk 0:00:17.1]} 136. Kc1 {[%clk 0:00:04.6]}
136... Re1# {[%clk 0:00:16.7]} 0-1